Cogmind - Beta 13 @@@ ROGUE MODE // 2024.04.22 @ 12:09:30 Player: Barbarossa Result: Destroyed by G-34 Mercenary with Small Laser Performance ------------- Evolutions (1) 500 Regions Visited (2) 400 Robots Destroyed (23) 115 Value Destroyed (525) 525 Prototype IDs (0) 0 Alien Tech Used (0) 0 Bonus (0) 0 TOTAL SCORE: 1540 Bonus ------- None Cogmind --------- Core Integrity 0/400 Matter 285/300 Energy 100/100 System Corruption 0% Temperature Cool (60) Movement Core (1450) Ox28 Location -9/Materials Parts ------- > --- POWER (1) -------- (None) > --- PROPULSION (3) --- (None) > --- UTILITY (3) ------ Huge Storage Unit Targeting Computer Power Shielding > --- WEAPON (2) ------- Particle Gun Heavy Hammer > --- INVENTORY (25) --- Ion Engine Ion Engine Heat Sink Hacking Suite Datajack Heavy Hammer Peak State ------------ > --- POWER ------------ Ion Engine > --- PROPULSION ------- Compact Wheel Compact Wheel Compact Wheel > --- UTILITY ---------- Heat Sink Huge Storage Unit Power Shielding > --- WEAPON ----------- Small Laser Heavy Hammer > --- INVENTORY -------- Ion Engine Ion Engine Compact Wheel Heat Sink Targeting Computer Hacking Suite Datajack Heavy Hammer Heavy Hammer [Rating: 11] Favorites ----------- Power Ion Engine Engine Ion Engine Power Core Light Nuclear Core Propulsion Compact Wheel Leg Aluminum Leg Wheel Compact Wheel Utility Huge Storage Unit Device Heat Sink Storage Huge Storage Unit Processor Targeting Computer Protection Power Shielding Weapon Light Assault Rifle Energy Gun Small Laser Ballistic Gun Light Assault Rifle Impact Weapon Heavy Hammer Build | -11 -10 -9 ------- Run | Yrd Mat Mat Slots Evolved 2 | . . 2 Power . | . . . Propulsion 1 | . . 1 Utility 1 | . . 1 Weapon . | . . . Parts Attached 21 | 2 10 9 Power 2 | . 1 1 Engine 1 | . 1 . Core 1 | . . 1 Reactor . | . . . Propulsion 7 | . 4 3 Treads . | . . . Leg . | . . . Wheel 7 | . 4 3 Hover . | . . . Flight . | . . . Utility 5 | . 3 2 Device 1 | . 1 . Storage 2 | . 2 . Processor 1 | . . 1 Hackware . | . . . Protection 1 | . . 1 Artifact . | . . . Weapon 7 | 2 2 3 Energy Gun 2 | . 1 1 Energy Cannon . | . . . Ballistic Gun 3 | 2 1 . Ballistic Cannon . | . . . Launcher . | . . . Special Weapon . | . . . Impact Weapon 2 | . . 2 Slashing Weapon . | . . . Piercing Weapon . | . . . Special Melee Weapon . | . . . Unidentified Prototypes . | . . . Parts Lost 10 | . . 10 Power 2 | . . 2 Propulsion 4 | . . 4 Utility 1 | . . 1 Weapon 3 | . . 3 Highest Loss Streak 6 | . . 6 To Critical Strikes . | . . . Average Slot Usage (%) 79 | . 94 57 Engine 9 | . 14 3 Core 2 | . . 6 Leg 1 | . 3 . Wheel 19 | . 24 10 Device 5 | . 8 1 Storage 12 | . 14 11 Protection 4 | . . 11 Energy Gun 8 | . 8 8 Ballistic Gun 12 | . 19 1 Impact Weapon 1 | . . 3 Naked Turns . | . . . Heaviest Build 91 | 13 88 91 Greatest Support 48 | 20 32 48 Greatest Overweight (x) 29 | . 2 29 Average Overweight (x) 1 | . . 5 Largest Inventory Capacity 25 | 8 25 25 Average Capacity 19 | 8 16 25 Most Carried 11 | 6 10 11 Average Carried 8 | 5 8 8 Final Capacity 25 | 8 25 25 Final Carried 10 | 5 10 6 Class Distribution -------------------- 58% | Mutant 41% | Scavenger-Mutant Dominant Class ---------------- Scavenger-Mutant | -10/Materials Mutant | -9/Materials Resources | -11 -10 -9 ----------- Run | Yrd Mat Mat Matter Collected 519 | 200 254 65 Remotely . | . . . Salvage Created 1080 | . 707 373 Parts 45 | . 32 13 Haulers Intercepted 2 | . 2 . Recyclers Shooed 3 | . 2 1 Parts Field Recycled . | . . . Retrieved Matter . | . . . Parts Self-Destructed . | . . . Prevented . | . . . Kills | -11 -10 -9 ------- Run | Yrd Mat Mat Combat Hostiles Destroyed 15 | . 7 8 Melee 4 | . . 4 Guns 8 | . 7 1 Classes Destroyed 6 | . 5 1 Hauler 2 | . 2 . Recycler 5 | . 4 1 Operator 1 | . 1 . Swarmer 3 | . 3 . Grunt 11 | . 4 7 Sentry 1 | . . 1 Best Kill Streak 5 | . 5 4 Combat Bots Only 4 | . 3 4 Max Kills in Single Turn 1 | . 1 1 Gunslinging . | . . . Exploded . | . . . Melee 1 | . . 1 Uniques/NPCs Destroyed . | . . . Combat | -11 -10 -9 -------- Run | Yrd Mat Mat Hostile Shots Fired 159 | . 66 93 Missed 36 | . 20 16 Damage Taken 1518 | . 503 1015 Core 511 | . 103 408 Absorbed by Shields . | . . . Redirected to Shielding 34 | . . 34 Core Remaining (%) 79 | 100 58 . Volleys Fired 79 | . 58 21 Largest 2 | . 2 1 Hottest 65 | . 60 65 Shots Fired 136 | . 115 21 Gun 136 | . 115 21 Cannon . | . . . Launcher . | . . . Special . | . . . Kinetic 85 | . 85 . Thermal 51 | . 30 21 Explosive . | . . . Electromagnetic . | . . . Robot Hit Streak 15 | . 15 6 Robot Miss Streak 4 | . 4 2 Penetration Max . | . . . Secondary Targets 2 | . 2 . Max Gunslinging Chain 1 | . 1 . Shots Hit Robots 97 | . 69 28 Core Hits 38 | . 31 7 Critical Kills 2 | . 1 1 Critical Parts Destroyed 3 | . . 3 Critical Strikes 7 | . 1 6 Burn 1 | . . 1 Destroy 1 | . 1 . Smash 5 | . . 5 Melee Attacks 19 | . . 19 Impact 19 | . . 19 Slashing . | . . . Piercing . | . . . Sneak Attacks 1 | . . 1 Combat Hostiles . | . . . Follow-up Attacks . | . . . Damage Inflicted 1555 | . 732 823 Guns 966 | . 732 234 Cannons . | . . . Explosions . | . . . Melee 589 | . . 589 Ramming . | . . . Kinetic 507 | . 507 . Thermal 459 | . 225 234 Explosive . | . . . Electromagnetic . | . . . Impact 589 | . . 589 Slashing . | . . . Piercing . | . . . Highest Corruption . | . . . Average Corruption . | . . . Corruption Purged . | . . . Corruption Blocked . | . . . Overload Shots . | . . . Overflow Damage 133 | . . 133 Projectiles . | . . . Explosions . | . . . Melee 133 | . . 133 Knockbacks 1 | . . 1 Impact 1 | . . 1 Kinetic . | . . . Secondary . | . . . Self-Inflicted Damage . | . . . Shots . | . . . Rammed . | . . . Targets Rammed . | . . . Kicked . | . . . Crushed . | . . . Highest Temperature 162 | . 18 162 Average Temperature 51 | . 8 72 Received Heat Transfer 651 | . 192 459 Siege Activations . | . . . Robots Corrupted . | . . . Combat Hostiles . | . . . Parts Fried 3 | . . 3 Impact Corruptions 4 | . . 4 Robots Melted . | . . . Combat Hostiles . | . . . Parts Melted 1 | . . 1 Heat Transferred 1154 | . 525 629 Parts Sabotaged . | . . . Parts Stolen . | . . . Parts Stripped . | . . . Power Chain Reactions . | . . . Alert | -11 -10 -9 ------- Run | Yrd Mat Mat Peak Influence 202 | . 202 167 Initial 42 | . . 42 Average 100 | . 100 100 Maximum Alert Level 1 | . 1 . Low Security (%) 99 | 100 98 100 Level 1 . | . 1 . Level 2 . | . . . Level 3 . | . . . Level 4 . | . . . Level 5 . | . . . High Security . | . . . Max Security . | . . . Squads Dispatched 3 | . 2 1 Investigation 1 | . 1 . Extermination . | . . . Reinforcement 2 | . 1 1 Assault . | . . . Garrison . | . . . Intercept . | . . . Searches Triggered . | . . . Construction Impeded . | . . . Haulers Reinforced . | . . . Active Scanning Responses . | . . . Cargo Convoy Interrupts . | . . . Stealth | -11 -10 -9 --------- Run | Yrd Mat Mat Distress Signals 3 | . 1 2 Communications Jammed . | . . . Distress Signals . | . . . Times Spotted 35 | . 15 20 Peak Tracking Total 6 | . 6 6 Tactical Retreats 1 | . . 1 Traps | -11 -10 -9 ------- Run | Yrd Mat Mat Traps Triggered 1 | . 1 . Indirectly . | . . . Trap Hack Attempts . | . . . Triggered . | . . . Disarmed . | . . . Reprogrammed . | . . . Reused . | . . . Traps Extracted . | . . . Installed . | . . . Triggered . | . . . Machines | -11 -10 -9 ---------- Run | Yrd Mat Mat Machines Disabled . | . . . Max in Single Turn . | . . . Machines Repaired . | . . . Machines Dismantled . | . . . Machines Sabotaged . | . . . Overloaded Fab Kills . | . . . Hacking | -11 -10 -9 --------- Run | Yrd Mat Mat Machines Accessed 8 | . 7 1 Terminals 8 | . 7 1 Fabricators . | . . . Repair Stations . | . . . Recycling Units . | . . . Scanalyzers . | . . . Garrison Access . | . . . Total Hacks 22 | . 20 2 Successful 12 | . 11 1 Failed 10 | . 9 1 Catastrophic 1 | . 1 . Database Lockouts . | . . . Manual 18 | . 16 2 Terminals 22 | . 20 2 Fabricators . | . . . Repair Stations . | . . . Recycling Units . | . . . Scanalyzers . | . . . Garrison Access . | . . . Terminal Hacks 4 | . 4 . Part Schematic 1 | . 1 . Level Access Points 1 | . 1 . Locate Traps 1 | . 1 . Zone Layout 1 | . 1 . Fabricator Hacks . | . . . Repair Station Hacks . | . . . Recycling Unit Hacks . | . . . Scanalyzer . | . . . Garrison Access Hacks . | . . . Unauthorized Hacks 8 | . 7 1 Terminals 8 | . 7 1 Botnet 8 | . 7 1 Fabricators . | . . . Repair Stations . | . . . Recycling Units . | . . . Scanalyzers . | . . . Garrison Access . | . . . Data Cores Recovered . | . . . Used . | . . . Hacking Detections 7 | . 6 1 Full Trace Events 1 | . 1 . Feedback Events . | . . . Feedback Blocked . | . . . Robot Schematics Acquired . | . . . Robots Built . | . . . Authchips . | . . . Time . | . . . Total Robot Build Rating . | . . . Part Schematics Acquired 1 | . 1 . Parts Built . | . . . Authchips . | . . . Time . | . . . Total Part Build Rating . | . . . Parts Repaired . | . . . Time . | . . . Parts Recycled . | . . . Recycled Matter . | . . . Retrieved Matter . | . . . Retrieved Components . | . . . Parts Scanalyzed . | . . . Part Schematics Acquired . | . . . Parts Damaged . | . . . Bothacking | -11 -10 -9 ------------ Run | Yrd Mat Mat Used RIF Installer . | . . . Robots Hacked . | . . . Non-combat . | . . . Combat . | . . . Robot Hacks Applied . | . . . Relay Couplers Released . | . . . Fabnet Peak Effective % . | . . . Robots Rewired . | . . . Allies Hacked . | . . . Hacks Repelled . | . . . Allies | -11 -10 -9 -------- Run | Yrd Mat Mat Total Allies . | . . . Largest Group . | . . . Highest-Rated Group . | . . . Highest-Rated Ally . | . . . Total Orders . | . . . Ally Attacks . | . . . Total Damage . | . . . Kills . | . . . Allies Corrupted . | . . . Allies Melted . | . . . Intel | -11 -10 -9 ------- Run | Yrd Mat Mat Robot Analysis Total . | . . . Derelict Logs Recovered . | . . . Drone Launches . | . . . Drone Recoveries . | . . . Exploration | -11 -10 -9 ------------- Run | Yrd Mat Mat Turns Passed 1240 | 4 736 500 Spaces Moved 588 | 1 476 111 Core 15 | . . 15 Treads . | . . . Legs 34 | 1 33 . Wheels 539 | . 443 96 Hover . | . . . Flight . | . . . Fastest Speed 100 | 120 100 115 Average Speed 150 | 120 113 306 Slowest Speed 1500 | 120 130 1500 Overloaded Moves . | . . . Propulsion Burnouts . | . . . Robots Hopped . | . . . Cave-ins Triggered . | . . . Exploration Rate (%) 28 | 2 75 8 Regions Visited 2 Branch Regions . Pre-discovered Areas . | . . . Known Exits Taken 1 | . 1 . Unknown Exits Taken 1 | 1 . . Scrap Searched . | . . . Spaces Dug . | . . . Terrain Destroyed . | . . . Melee . | . . . Projectile . | . . . AOE . | . . . Terrain Rammed . | . . . Walls Destroyed . | . . . Machines Disabled . | . . . Actions | -11 -10 -9 --------- Run | Yrd Mat Mat Total 789 | 3 569 217 Wait 54 | . 3 51 Move 586 | . 475 111 Hop . | . . . Pick Up 18 | . 13 5 Fast Attach 2 | . 2 . Attach 10 | . 2 8 Detach . | . . . Swap 9 | 2 6 1 Drop 12 | 1 10 1 Fire 79 | . 58 21 Melee 19 | . . 19 Ram . | . . . Kick . | . . . Crush . | . . . Escape Stasis . | . . . Rewire . | . . . Trap . | . . . Miscellaneous . | . . . Route ------- -11/Scrapyard -10/Materials (discovered 4 exits: *Mat x3 / [*Min]) -9/Materials History --------- Turn | Location | Event 5 | -11/Scrapyard | Discovered new exit (range 0) 5 | -11/Scrapyard | Entered Materials 192 | -10/Materials | Discovered new exit (range 10) 324 | -10/Materials | Discovered new exit (range 7) 530 | -10/Materials | Discovered new exit (range 15) 586 | -10/Materials | Build established: Scavenger-Mutant 684 | -10/Materials | Identified exit to Materials 741 | -10/Materials | Entered another Materials area 741 | -9/Materials | Evolved 2 slots: Propulsion x1, Utility x1 847 | -9/Materials | Lost 3 parts (1u2w) 929 | -9/Materials | Core integrity fell below 50% 983 | -9/Materials | Lost 6 parts (1p4n1w) 1103 | -9/Materials | Build established: Mutant 1236 | -9/Materials | Core integrity fell below 20% 1241 | -9/Materials | Destroyed by G-34 Mercenary with Small Laser Last Messages --------------- 00952_ Com. Wheel destroyed. 00956_ Sml. Laser melted. 00956_ G-34 Mercenary destroyed. 00997_ Acquired 25 matter. 01090_ K-01 Serf collects debris. 01103_ R-06 Scavenger collects Aluminum Leg. 01103_ K-01 Serf collects debris. 01107_ R-06 Scavenger collects Aluminum Leg. 01110_ R-06 Scavenger collects Corrupted Ion Engine. 01111_ K-01 Serf collects debris. 01114_ R-06 Scavenger collects Aluminum Leg. 01118_ K-01 Serf collects debris. 01171_ R-06 Scavenger collects Corrupted Heat Sink. 01174_ R-06 Scavenger collects Corrupted Lgt. Treads. 01185_ R-06 Scavenger destroyed. 01219_ L-31 Rogue suffers critical hit (Burn). 01230_ Lgt. Nuclear Core destroyed. Map ----- +----------------------------------------------------+ | ???????????# #? ???????????????????????? | | ????????#### #? ???????????????????????? | | ???????##T## # """ ""???????????????????????? | | ???????# # """ ""???????????????????????? | | ???????# ! + """ ""???????????????????????? | | ???????# # #????????????????????? | | ??########## # #????????????????????? | | ??#= # #? #????????????????????? | | ??# """ # #?#########????????????????????? | | ??# """ + #??????????????????????????????? | | ??# """ # #??????????????????????????????? | | ??# + #??????????????????????????????? | | ??# """ # #??????????#+##?#####??????????? | | ??#!! """ # #??????????# =? #??????????? | | ??#! """ # #??????????# ! #??????????? | | ??#!/ # #??????????# #??????????? | | ??########## #??????????# """ #??????????? | | ???????????# #??????????# """"" #??????????? | | ???????????# #??????????# """"" #??????????? | | ???????????# #??????????# """"" !#??????????? | | ???????????# #??????????# """ #??????????? | | ??????????## ##?????????# = #??????????? | | ??????????# ###############+##############? | | ??????????# % *k %% | | ??????????+ !%! * g %g | | ??????????# !%= =%@l | | ??????????# ##########+#############+### | | ??????????## ##?????????????????????????????? | | ???????????# #??????????????????????????????? | | ???????????# #??????????????????????????????? | | ???????????# #??????????????????????????????? | | ???????????# #??????????????????????????????? | | ???????????# #??????????????????????????????? | | ???????????# #??????????????????????????????? | | ???????????## #??????????????????????????????? | | ????????????# #??????????????????????????????? | | ????????????# #??????????????????????????????? | | ????????????# ???????????????????????????????? | | ????????????? ????????????????????????????????? | | ??????????????????????????????????????????????? | | ??????????????????????????????????????????????? | | ??????????????????????????????????????????????? | | ??????????????????????????????????????????????? | | ??????????????????????????????????????????????? | | ??????????????????????????????????????????????? | | ??????????????????????????????????????????????? | | ??????????????????????????????????????????????? | | ??????????????????????????????????????????????? | | ??????????????????????????????????????????????? | | ??????????????????????????????????????????????? | +----------------------------------------------------+ Best States ------------- Heat Dissipation 38 Energy Generation 14 Energy Capacity 250 Matter Stores 300 Matter Capacity 300 Sight Range 16 Terrain Scan Density 10 Power Shielding 33 Evasion (%) 55 Targeting Accuracy 5 Item Schematics ----------------- Cargo Storage Unit | -10/Materials | Hacked Robot Schematics ------------------ None Fabricated ------------ Nothing Alien Tech Used ----------------- None Achievements -------------- None Challenges ------------ None Game ------ Seed MetafieldDeepDoublenader Manual? 0 Play Time 00:13:12 Cumulative 118.5 hours Start 2024.04.22 @ 11:58:47 End 2024.04.22 @ 12:09:30 Sessions 1 Manual Loads 0 Difficulty Rogue Special Mode None Game No. 231 Rogue 231 Adventurer 0 Explorer 0 Win Type - Total 0 Types 0/0/0/0/0/0/0/0/0 Lore% 33 Gallery% 43 Achievement% 31 Wizard Run 0 Options --------- Layout 1 ASCII 0 Keyboard 0 Movement Mouse Keybinds 0 Fullscreen 1 Font 24/Smallcaps Map View 50x40 Zoom Use 0% Tactical HUD 1 Map Filters NONE Filters NONE Steam 1 RUN: b96f3a20-9bbf-4231-a534-603295af1798